{"text_format":"1","workbook":"xlsx","n_sheets":2,"sheets":["Calculator","Results"],"not_rendered":{"charts":0,"images":0,"macros":1,"external_links":0,"defined_names":0,"comments":2,"pivot_tables":0},"unopened":[],"bounds":{"document_bytes":16777216,"sheet_cells":100000,"rows_first":2000,"rows_last":500,"rows_between":2000,"halvings":0,"cell_chars":16384,"cell_head_chars":4096},"cells_cut":0,"cells_raw":0,"read":"whole","date_system":"1900"}

{"sheet":"Calculator","index":0,"n_rows":61,"n_cols":8,"rows_kept":61,"cut":false,"hidden":false,"merged":[[60,0,60,5],[12,6,12,7],[51,2,52,3],[51,4,52,6],[0,0,0,1],[1,0,1,1],[10,0,10,4],[12,0,12,1],[12,3,12,4],[21,0,21,4],[22,0,22,4],[42,0,42,1],[24,0,25,1],[24,2,24,4],[1,2,1,3],[26,0,26,1],[46,0,46,1],[27,0,27,1],[28,0,28,1],[29,0,29,1],[30,0,30,1],[40,0,41,1],[45,0,45,1],[40,2,40,4],[37,0,37,4],[38,0,38,4],[31,0,31,1],[44,0,44,1],[43,0,43,1],[33,0,33,1],[32,0,32,1],[35,0,35,1]]}
["FIRE VULNERABILITY INDEX"]
["Release 2023"]
[]
["Geographic Area Assessed","Canastra",null,null,null,null,"Reptile"]
["Major Taxonomic Group","Bird",null,null,null,null,"Bird"]
["Family","Psitacideo",null,null,null,null,"Flying mammal"]
["Species Scientific Name","Teste",null,null,null,null,"Small mammal"]
[null,null,null,null,null,null,"Large mammal"]
[null,null,null,null,null,null,{"$f":"B12","v":0}]
["Section A: Exposure to local fire regime",null,{"$f":"B19*E19*H19","v":64}]
["Mark an \"X\" in the box that applies. Check only one box on each column."]
[]
["Fire return interval",null,null,"Fire extent",null,null,"Fire seasonality"]
["< 10%",null,null,0,null,null,"< 10%"]
["10-30%",null,null,1,null,null,"10-30%"]
["31-50%",null,null,2,null,null,"31-50%","x"]
["51-70%","x",null,3,null,null,"51-70%"]
[">70%",null,null,"≥ 4","x",null,">70%"]
[null,{"$f":"_xlfn.IFS(B14=\"x\",\"0,5\",B15=\"x\",\"1\",B16=\"x\",\"2\",B17=\"x\",\"4\",B18=\"x\",8)","v":"4"},null,null,{"$f":"_xlfn.IFS(E14=\"x\",\"0,5\",E15=\"x\",\"1\",E16=\"x\",\"2\",E17=\"x\",\"4\",E18=\"x\",8)","v":8},null,null,{"$f":"_xlfn.IFS(H14=\"x\",\"0,5\",H15=\"x\",\"1\",H16=\"x\",\"2\",H17=\"x\",\"4\",H18=\"x\",8)","v":"2"}]
["Section B: Species' sensitivity to fire ",null,{"$f":"C37+C47","v":2},{"$f":"E37+E47","v":1},{"$f":"IF(D20>=5,1,0)","v":0}]
[]
["Subsection B1: During fire"]
["Mark an \"X\" in the box that applies. Check only one box on each line."]
[]
["Traits",null,"Effect on Sensitivity"]
[null,null,"Increase","Decrease","Unknown"]
["Dormancy",null,"x",null,{"$f":"IF(COUNTIF(C27:D27,\"X\")>0,\"\",\"X\")","v":""}]
["Escape decision",null,null,"x",{"$f":"IF(COUNTIF(C28:D28,\"X\")>0,\"\",\"X\")","v":""}]
["Habitat use",null,null,"x",""]
["Mobility",null,null,"x",""]
["Morphology",null,"x",null,""]
["Nest substrate",null,null,"x",""]
["Reproductive cycles",null,null,"x",""]
["Sensory detection of fire cues",null,null,"x",""]
["Social organization",null,null,"x",""]
["Behavioral plasticity",null,null,"x",""]
[null,null,{"$f":"COUNTIF(C27:C36,\"x\")","v":2},{"$f":"COUNTIF(D27:D36,\"x\")","v":8},{"$f":"COUNTIF(E27:E36,\"x\")","v":0}]
["Subsection B2: Post fire"]
["Mark an \"X\" in the box that applies. Check only one box on each line."]
[]
["Traits",null,"Effect on Sensitivity"]
[null,null,"Increase","Decrease","Unknown"]
["Dormancy",null,null,"x",{"$f":"IF(COUNTIF(C43:D43,\"X\")>0,\"\",\"X\")","v":""},{"$f":"IF(C43=1,\"1\", \"0\")","v":"0"}]
["Endogenous circadian rhythms",null,null,null,{"$f":"IF(COUNTIF(C44:D44,\"X\")>0,\"\",\"X\")","v":"X"},"0"]
["Mobility",null,null,"x","","0"]
["Morphology",null,null,"x","","0"]
[null,null,{"$f":"COUNTIF(C43:C46,\"x\")","v":0},{"$f":"COUNTIF(D43:D46,\"x\")","v":3},{"$f":"COUNTIF(E43:E46,\"x\")","v":1}]
[]
["Scores"]
["Section A:",{"$f":"B19*E19*H19","v":64}]
["Subsection B1:",{"$f":"C37","v":2}]
["Subsection B2:",{"$f":"C47","v":0},"FIRE-VULNERABILITY CATEGORY",null,{"$f":"IF(E20=1,\"Insufficient Evidence\",E54)","v":"Less Vulnerable"}]
["FVI",{"$f":"((C20*C10)/7168)*10","v":0.17857142857142855}]
[null,null,null,null,{"$f":"_xlfn.IFS(B53>=7.5,\"Extremely Vulnerable\",B53>=5,\"Highly Vulnerable\",B53>=2.5,\"Moderately Vulnerable\",B53<2.5,\"Less Vulnerable\")","v":"Less Vulnerable"}]
[]
["Definitions of Index Values"]
["Extremely Vulnerable (EV): If the species scores above or equal to 7.5",null,null,null,"EV"]
["Highly Vulnerable (HV): If the species scores above or equal to 5.0 ",null,null,null,"HV"]
["Moderately Vulnerable (MV): If the species scores above or equal to 2.5",null,null,null,"MV"]
["Less Vulnerable (LV): If the species scores below 2.5",null,null,null,"LV"]
["Insufficient Evidence (IE): Information entered about a species' sensitivity is inadequate to calculate an Index score. Over 40% unknown information in section B."]

{"sheet":"Results","index":1,"n_rows":3,"n_cols":13,"rows_kept":3,"cut":false,"hidden":false,"merged":[[0,8,0,10],[0,11,1,11],[0,12,1,12],[0,0,1,0],[0,1,1,1],[0,2,1,2],[0,3,1,3],[0,4,0,7]]}
["Geographic Area Assessed","Major Taxonomic Group","Family","Species Scientific Name","Exposure",null,null,null,"Sensitivity",null,null,"FVI","Fire vulnerability category"]
[null,null,null,null,"Fire return interval","Fire extent","Fire seasonality","Exposure Score","During fire","Post fire","Sensitivity score"]
[1,2,3,4,5,6,7,8,9,10,11,12,13]